[Event "Titled Tuesday Blitz November 07 Early 2023"]
[White "Rama, Tejas"]
[Black "Khismatullin, Denis"]
[WhiteFideId "30907381"]
[BlackFideId "4142578"]
[WhiteElo "2499"]
[BlackElo "2925"]
[Result "0-1"]
[Round "1"]
[TimeControl "180+1"]
[Date "2023.11.07"]
[WhiteClock "0:00:08"]
[BlackClock "0:00:18"]
[Board "32"]

1. d4 {[%clk 0:03:00]}  Nf6 {[%clk 0:02:59]} 2. c4 {[%clk 0:03:01]}  e6 {[%clk 0:02:59]} 3. Nf3 {[%clk 0:03:01]}  Bb4+ {[%clk 0:02:59]} 4. Bd2 {[%clk 0:03:01]}  Bxd2+ {[%clk 0:02:59]} 5. Qxd2 {[%clk 0:03:02]}  O-O {[%clk 0:02:59]} 6. Nc3 {[%clk 0:03:02]}  d5 {[%clk 0:02:59]} 7. e3 {[%clk 0:03:02]}  Qe7 {[%clk 0:03:00]} 8. Bd3 {[%clk 0:03:01]}  dxc4 {[%clk 0:02:59]} 9. Bxc4 {[%clk 0:03:01]}  Rd8 {[%clk 0:02:59]} 10. O-O {[%clk 0:03:00]}  c5 {[%clk 0:02:53]} 11. Rad1 {[%clk 0:02:19]}  Nc6 {[%clk 0:02:49]} 12. Qe2 {[%clk 0:02:05]}  cxd4 {[%clk 0:02:49]} 13. exd4 {[%clk 0:02:06]}  Bd7 {[%clk 0:02:37]} 14. Rfe1 {[%clk 0:01:48]}  Na5 {[%clk 0:02:36]} 15. Bd3 {[%clk 0:01:10]}  Bc6 {[%clk 0:02:35]} 16. Ne5 {[%clk 0:01:07]}  Rac8 {[%clk 0:02:29]} 17. Bb1 {[%clk 0:00:59]}  Bd5 {[%clk 0:02:25]} 18. Rd3 {[%clk 0:00:51]}  Nc6 {[%clk 0:02:17]} 19. Red1 {[%clk 0:00:38]}  g6 {[%clk 0:02:13]} 20. Rh3 {[%clk 0:00:37]}  Qf8 {[%clk 0:01:39]} 21. Qe3 {[%clk 0:00:37]}  Qg7 {[%clk 0:01:34]} 22. Qg5 {[%clk 0:00:33]}  Ne7 {[%clk 0:01:21]} 23. Rhd3 {[%clk 0:00:31]}  h6 {[%clk 0:01:17]} 24. Qd2 {[%clk 0:00:31]}  Nf5 {[%clk 0:01:15]} 25. Nxd5 {[%clk 0:00:26]}  Rxd5 {[%clk 0:01:10]} 26. a3 {[%clk 0:00:25]}  Rcd8 {[%clk 0:01:01]} 27. Qb4 {[%clk 0:00:24]}  Nd7 {[%clk 0:00:51]} 28. Qxb7 {[%clk 0:00:23]}  Nxe5 {[%clk 0:00:47]} 29. dxe5 {[%clk 0:00:23]}  Qxe5 {[%clk 0:00:48]} 30. Rxd5 {[%clk 0:00:23]}  Rxd5 {[%clk 0:00:48]} 31. Qc8+ {[%clk 0:00:22]}  Kg7 {[%clk 0:00:46]} 32. Qc1 {[%clk 0:00:17]}  Nd4 {[%clk 0:00:43]} 33. Bd3 {[%clk 0:00:16]}  Ne2+ {[%clk 0:00:29]} 34. Bxe2 {[%clk 0:00:17]}  Qxe2 {[%clk 0:00:30]} 35. Rxd5 {[%clk 0:00:17]}  exd5 {[%clk 0:00:30]} 36. g3 {[%clk 0:00:16]}  d4 {[%clk 0:00:29]} 37. Qf1 {[%clk 0:00:10]}  d3 {[%clk 0:00:28]} 38. f4 {[%clk 0:00:09]}  Qe3+ {[%clk 0:00:24]} 39. Qf2 {[%clk 0:00:09]}  Qc1+ {[%clk 0:00:24]} 40. Kg2 {[%clk 0:00:10]}  d2 {[%clk 0:00:23]} 41. Qd4+ {[%clk 0:00:10]}  Kh7 {[%clk 0:00:21]} 42. Qf6 {[%clk 0:00:11]}  Qc7 {[%clk 0:00:18]} 43. Qd4 {[%clk 0:00:08]}  Qc2 {[%clk 0:00:18]} 0-1


[Site "https://www.chess.com"]

[Event "Titled Tuesday Blitz November 07 Early 2023"]
[White "Kukhmazov, Arsen"]
[Black "Dinu, Dumitru-Daniel"]
[WhiteFideId "24108260"]
[BlackFideId "1208403"]
[WhiteElo "2911"]
[BlackElo "2499"]
[Result "1-0"]
[Round "1"]
[TimeControl "180+1"]
[Date "2023.11.07"]
[WhiteClock "0:00:36"]
[BlackClock "0:00:36"]
[Board "33"]

1. d4 {[%clk 0:03:00]}  Nf6 {[%clk 0:02:59]} 2. c4 {[%clk 0:03:01]}  e6 {[%clk 0:02:59]} 3. Nf3 {[%clk 0:03:02]}  b6 {[%clk 0:02:59]} 4. a3 {[%clk 0:03:01]}  Bb7 {[%clk 0:03:00]} 5. Nc3 {[%clk 0:03:02]}  Be7 {[%clk 0:03:00]} 6. d5 {[%clk 0:03:02]}  exd5 {[%clk 0:02:58]} 7. cxd5 {[%clk 0:03:02]}  O-O {[%clk 0:02:55]} 8. e4 {[%clk 0:03:03]}  d6 {[%clk 0:02:49]} 9. Bd3 {[%clk 0:03:03]}  Nbd7 {[%clk 0:02:49]} 10. O-O {[%clk 0:03:04]}  Re8 {[%clk 0:02:49]} 11. b4 {[%clk 0:03:01]}  a5 {[%clk 0:02:49]} 12. Bb2 {[%clk 0:03:01]}  axb4 {[%clk 0:02:48]} 13. axb4 {[%clk 0:03:02]}  Ng4 {[%clk 0:02:46]} 14. Rxa8 {[%clk 0:02:46]}  Qxa8 {[%clk 0:02:45]} 15. Bb5 {[%clk 0:02:47]}  Rd8 {[%clk 0:02:39]} 16. Nd4 {[%clk 0:02:41]}  Ngf6 {[%clk 0:02:16]} 17. Nc6 {[%clk 0:02:41]}  Bxc6 {[%clk 0:02:16]} 18. Bxc6 {[%clk 0:02:42]}  Qc8 {[%clk 0:02:12]} 19. Nb5 {[%clk 0:02:33]}  Ne5 {[%clk 0:02:09]} 20. Bxe5 {[%clk 0:02:28]}  dxe5 {[%clk 0:02:09]} 21. Qb1 {[%clk 0:01:52]}  Bd6 {[%clk 0:01:57]} 22. f3 {[%clk 0:01:47]}  Rf8 {[%clk 0:01:45]} 23. Qb2 {[%clk 0:01:41]}  Qd8 {[%clk 0:01:43]} 24. Ra1 {[%clk 0:01:41]}  Nh5 {[%clk 0:01:39]} 25. Qd2 {[%clk 0:01:20]}  Nf4 {[%clk 0:01:34]} 26. g3 {[%clk 0:01:20]}  Nh3+ {[%clk 0:01:13]} 27. Kg2 {[%clk 0:01:19]}  Ng5 {[%clk 0:01:14]} 28. h4 {[%clk 0:01:18]}  Nxf3 {[%clk 0:01:07]} 29. Kxf3 {[%clk 0:01:18]}  f5 {[%clk 0:01:08]} 30. exf5 {[%clk 0:01:14]}  Rxf5+ {[%clk 0:01:08]} 31. Kg2 {[%clk 0:01:14]}  Qf6 {[%clk 0:01:00]} 32. Bd7 {[%clk 0:01:06]}  Rf3 {[%clk 0:01:00]} 33. Be6+ {[%clk 0:01:06]}  Kh8 {[%clk 0:00:59]} 34. Ra8+ {[%clk 0:01:05]}  Bf8 {[%clk 0:00:59]} 35. Bg4 {[%clk 0:00:40]}  Rf1 {[%clk 0:00:48]} 36. Qe2 {[%clk 0:00:34]}  Rb1 {[%clk 0:00:38]} 37. Qf2 {[%clk 0:00:34]}  Qxf2+ {[%clk 0:00:37]} 38. Kxf2 {[%clk 0:00:35]}  h5 {[%clk 0:00:38]} 39. Rxf8+ {[%clk 0:00:34]}  Kh7 {[%clk 0:00:38]} 40. Bf5+ {[%clk 0:00:35]}  g6 {[%clk 0:00:36]} 41. Bxb1 {[%clk 0:00:36]} 1-0


[Site "https://www.chess.com"]

[Event "Titled Tuesday Blitz November 07 Early 2023"]
[White "Svane, Frederik"]
[Black "Santos Flores, Alberto"]
[WhiteFideId "12923044"]
[BlackFideId "3601234"]
[WhiteElo "2901"]
[BlackElo "2495"]
[Result "1-0"]
[Round "1"]
[TimeControl "180+1"]
[Date "2023.11.07"]
[WhiteClock "0:00:06"]
[BlackClock "0:00:10"]
[Board "37"]

1. g3 {[%clk 0:03:00]}  d5 {[%clk 0:02:59]} 2. Nf3 {[%clk 0:03:01]}  Nf6 {[%clk 0:03:00]} 3. Bg2 {[%clk 0:03:01]}  c6 {[%clk 0:02:59]} 4. O-O {[%clk 0:03:02]}  Bf5 {[%clk 0:02:59]} 5. c4 {[%clk 0:03:01]}  e6 {[%clk 0:02:59]} 6. Qb3 {[%clk 0:03:02]}  Qb6 {[%clk 0:02:57]} 7. d3 {[%clk 0:03:02]}  dxc4 {[%clk 0:02:56]} 8. Qxc4 {[%clk 0:03:01]}  Nbd7 {[%clk 0:02:55]} 9. e4 {[%clk 0:02:53]}  Bg6 {[%clk 0:02:54]} 10. Qc2 {[%clk 0:02:45]}  Be7 {[%clk 0:02:29]} 11. Be3 {[%clk 0:02:44]}  Bc5 {[%clk 0:02:25]} 12. d4 {[%clk 0:02:44]}  Be7 {[%clk 0:02:20]} 13. Ne5 {[%clk 0:02:42]}  Qd8 {[%clk 0:02:10]} 14. Nc3 {[%clk 0:02:40]}  Nxe5 {[%clk 0:02:09]} 15. dxe5 {[%clk 0:02:40]}  Nd7 {[%clk 0:02:10]} 16. f4 {[%clk 0:02:39]}  Bc5 {[%clk 0:01:58]} 17. Bxc5 {[%clk 0:02:23]}  Nxc5 {[%clk 0:01:59]} 18. Qf2 {[%clk 0:02:14]}  Qb6 {[%clk 0:01:56]} 19. Rad1 {[%clk 0:02:07]}  O-O {[%clk 0:01:41]} 20. g4 {[%clk 0:02:06]}  h6 {[%clk 0:01:33]} 21. Rd6 {[%clk 0:01:57]}  Rad8 {[%clk 0:01:31]} 22. Rfd1 {[%clk 0:01:57]}  Rxd6 {[%clk 0:01:28]} 23. exd6 {[%clk 0:01:58]}  Nd7 {[%clk 0:01:27]} 24. Qxb6 {[%clk 0:01:51]}  axb6 {[%clk 0:01:27]} 25. Kf2 {[%clk 0:01:44]}  e5 {[%clk 0:01:25]} 26. f5 {[%clk 0:01:41]}  Bh7 {[%clk 0:01:25]} 27. Ke3 {[%clk 0:01:42]}  Rd8 {[%clk 0:01:22]} 28. h4 {[%clk 0:01:33]}  f6 {[%clk 0:01:21]} 29. Bf1 {[%clk 0:01:32]}  Kf8 {[%clk 0:01:20]} 30. b4 {[%clk 0:01:07]}  Bg8 {[%clk 0:01:09]} 31. a4 {[%clk 0:01:07]}  Nb8 {[%clk 0:01:01]} 32. Kf3 {[%clk 0:00:19]}  Na6 {[%clk 0:01:01]} 33. Bxa6 {[%clk 0:00:15]}  bxa6 {[%clk 0:01:02]} 34. a5 {[%clk 0:00:16]}  bxa5 {[%clk 0:00:55]} 35. bxa5 {[%clk 0:00:16]}  Rb8 {[%clk 0:00:55]} 36. Rd3 {[%clk 0:00:14]}  Bc4 {[%clk 0:00:53]} 37. Re3 {[%clk 0:00:14]}  Ke8 {[%clk 0:00:51]} 38. Na4 {[%clk 0:00:14]}  Kd7 {[%clk 0:00:36]} 39. Nb6+ {[%clk 0:00:13]}  Rxb6 {[%clk 0:00:34]} 40. axb6 {[%clk 0:00:14]}  Kxd6 {[%clk 0:00:35]} 41. g5 {[%clk 0:00:15]}  hxg5 {[%clk 0:00:27]} 42. hxg5 {[%clk 0:00:15]}  Bb5 {[%clk 0:00:28]} 43. Re1 {[%clk 0:00:13]}  c5 {[%clk 0:00:28]} 44. g6 {[%clk 0:00:08]}  c4 {[%clk 0:00:26]} 45. Rh1 {[%clk 0:00:08]}  c3 {[%clk 0:00:26]} 46. Ke3 {[%clk 0:00:07]}  Bc6 {[%clk 0:00:14]} 47. Rc1 {[%clk 0:00:07]}  Kc5 {[%clk 0:00:13]} 48. Rxc3+ {[%clk 0:00:08]}  Kxb6 {[%clk 0:00:14]} 49. Rc1 {[%clk 0:00:08]}  a5 {[%clk 0:00:14]} 50. Rh1 {[%clk 0:00:08]}  a4 {[%clk 0:00:14]} 51. Kd3 {[%clk 0:00:05]}  a3 {[%clk 0:00:14]} 52. Ra1 {[%clk 0:00:05]}  Bb5+ {[%clk 0:00:14]} 53. Ke3 {[%clk 0:00:05]}  Kc5 {[%clk 0:00:13]} 54. Rxa3 {[%clk 0:00:06]}  Kb4 {[%clk 0:00:10]} 55. Ra7 {[%clk 0:00:06]} 1-0


[Site "https://www.chess.com"]

[Event "Titled Tuesday Blitz November 07 Early 2023"]
[White "Bettalli, Francesco"]
[Black "AlmasRakhmatullaev"]
[WhiteFideId "2816453"]
[WhiteElo "2494"]
[BlackElo "2900"]
[Result "1-0"]
[Round "1"]
[TimeControl "180+1"]
[Date "2023.11.07"]
[WhiteClock "0:01:05"]
[BlackClock "0:00:17"]
[Board "38"]

1. e4 {[%clk 0:02:54]}  c5 {[%clk 0:01:50]} 2. Nc3 {[%clk 0:02:53]}  g6 {[%clk 0:01:50]} 3. Bc4 {[%clk 0:02:48]}  Bg7 {[%clk 0:01:49]} 4. h4 {[%clk 0:02:48]}  h5 {[%clk 0:01:48]} 5. Qf3 {[%clk 0:02:49]}  e6 {[%clk 0:01:48]} 6. d4 {[%clk 0:02:48]}  cxd4 {[%clk 0:01:37]} 7. Nb5 {[%clk 0:02:48]}  d6 {[%clk 0:01:38]} 8. Bf4 {[%clk 0:02:47]}  Be5 {[%clk 0:01:34]} 9. Bxe5 {[%clk 0:02:47]}  dxe5 {[%clk 0:01:35]} 10. Qa3 {[%clk 0:02:47]}  Rh7 {[%clk 0:01:15]} 11. Nf3 {[%clk 0:01:56]}  f6 {[%clk 0:00:59]} 12. Nd6+ {[%clk 0:01:22]}  Kd7 {[%clk 0:00:58]} 13. Nxc8 {[%clk 0:01:23]}  Qxc8 {[%clk 0:00:54]} 14. Nxe5+ {[%clk 0:01:22]}  fxe5 {[%clk 0:00:50]} 15. Bxe6+ {[%clk 0:01:21]}  Kxe6 {[%clk 0:00:29]} 16. Qh3+ {[%clk 0:01:22]}  Kd6 {[%clk 0:00:29]} 17. Qxc8 {[%clk 0:01:23]}  Nf6 {[%clk 0:00:17]} 18. c3 {[%clk 0:01:05]} 1-0


[Site "https://www.chess.com"]

[Event "Titled Tuesday Blitz November 07 Early 2023"]
[White "Melkumyan, Hrant"]
[Black "Grossboss19"]
[WhiteFideId "13302485"]
[WhiteElo "2893"]
[BlackElo "2493"]
[Result "1/2-1/2"]
[Round "1"]
[TimeControl "180+1"]
[Date "2023.11.07"]
[WhiteClock "0:00:02"]
[BlackClock "0:00:04"]
[Board "39"]

1. Nf3 {[%clk 0:03:00]}  Nf6 {[%clk 0:02:59]} 2. c4 {[%clk 0:02:48]}  e6 {[%clk 0:02:58]} 3. g3 {[%clk 0:02:43]}  d5 {[%clk 0:02:58]} 4. Bg2 {[%clk 0:02:43]}  Be7 {[%clk 0:02:56]} 5. O-O {[%clk 0:02:39]}  O-O {[%clk 0:02:56]} 6. b3 {[%clk 0:02:39]}  b6 {[%clk 0:02:55]} 7. Bb2 {[%clk 0:02:38]}  Bb7 {[%clk 0:02:55]} 8. e3 {[%clk 0:02:39]}  c5 {[%clk 0:02:54]} 9. Qe2 {[%clk 0:02:37]}  Nbd7 {[%clk 0:02:53]} 10. Rd1 {[%clk 0:02:36]}  Qc7 {[%clk 0:02:53]} 11. Nc3 {[%clk 0:02:35]}  a6 {[%clk 0:02:53]} 12. Rac1 {[%clk 0:02:34]}  Rac8 {[%clk 0:02:53]} 13. d4 {[%clk 0:02:34]}  dxc4 {[%clk 0:02:49]} 14. bxc4 {[%clk 0:02:32]}  Rfd8 {[%clk 0:02:47]} 15. d5 {[%clk 0:02:30]}  exd5 {[%clk 0:02:46]} 16. cxd5 {[%clk 0:02:24]}  b5 {[%clk 0:02:41]} 17. e4 {[%clk 0:02:24]}  Bd6 {[%clk 0:02:39]} 18. a4 {[%clk 0:02:09]}  b4 {[%clk 0:02:26]} 19. Na2 {[%clk 0:02:00]}  Re8 {[%clk 0:02:17]} 20. Nh4 {[%clk 0:01:49]}  Be5 {[%clk 0:02:10]} 21. Nxb4 {[%clk 0:01:45]}  Bxb2 {[%clk 0:02:04]} 22. Qxb2 {[%clk 0:01:46]}  Qb6 {[%clk 0:02:02]} 23. Nd3 {[%clk 0:01:46]}  Qxb2 {[%clk 0:02:01]} 24. Nxb2 {[%clk 0:01:47]}  Nxe4 {[%clk 0:02:00]} 25. Nf5 {[%clk 0:01:46]}  Rb8 {[%clk 0:01:54]} 26. Nc4 {[%clk 0:01:42]}  g6 {[%clk 0:01:46]} 27. Nfd6 {[%clk 0:01:26]}  Nxd6 {[%clk 0:01:44]} 28. Nxd6 {[%clk 0:01:27]}  Red8 {[%clk 0:01:41]} 29. Ne4 {[%clk 0:01:24]}  Rbc8 {[%clk 0:01:32]} 30. Nd6 {[%clk 0:01:05]}  Rb8 {[%clk 0:01:32]} 31. a5 {[%clk 0:01:03]}  Ba8 {[%clk 0:01:21]} 32. Ne4 {[%clk 0:00:53]}  Rb5 {[%clk 0:01:15]} 33. Ra1 {[%clk 0:00:44]}  c4 {[%clk 0:01:14]} 34. Nc3 {[%clk 0:00:30]}  Rc5 {[%clk 0:01:11]} 35. d6 {[%clk 0:00:28]}  Bxg2 {[%clk 0:01:10]} 36. Kxg2 {[%clk 0:00:29]}  Ne5 {[%clk 0:01:04]} 37. Rd4 {[%clk 0:00:29]}  Nc6 {[%clk 0:01:02]} 38. Rf4 {[%clk 0:00:21]}  Rxa5 {[%clk 0:00:53]} 39. Rb1 {[%clk 0:00:22]}  Rxd6 {[%clk 0:00:45]} 40. Rxc4 {[%clk 0:00:18]}  Kg7 {[%clk 0:00:39]} 41. Rb6 {[%clk 0:00:18]}  Ne5 {[%clk 0:00:34]} 42. Rxd6 {[%clk 0:00:18]}  Nxc4 {[%clk 0:00:34]} 43. Rd7 {[%clk 0:00:19]}  Ne5 {[%clk 0:00:33]} 44. Ra7 {[%clk 0:00:18]}  Ra3 {[%clk 0:00:33]} 45. Ne4 {[%clk 0:00:18]}  Ra2 {[%clk 0:00:31]} 46. Nd6 {[%clk 0:00:18]}  g5 {[%clk 0:00:27]} 47. h3 {[%clk 0:00:18]}  h5 {[%clk 0:00:27]} 48. Re7 {[%clk 0:00:10]}  Kf6 {[%clk 0:00:25]} 49. Re8 {[%clk 0:00:10]}  Nd3 {[%clk 0:00:19]} 50. Ne4+ {[%clk 0:00:11]}  Kg7 {[%clk 0:00:19]} 51. Rd8 {[%clk 0:00:10]}  Ne1+ {[%clk 0:00:19]} 52. Kf1 {[%clk 0:00:10]}  Nf3 {[%clk 0:00:19]} 53. Rd5 {[%clk 0:00:08]}  Kg6 {[%clk 0:00:16]} 54. Rd6+ {[%clk 0:00:08]}  Kf5 {[%clk 0:00:15]} 55. Nc5 {[%clk 0:00:07]}  g4 {[%clk 0:00:14]} 56. hxg4+ {[%clk 0:00:08]}  hxg4 {[%clk 0:00:15]} 57. Rd5+ {[%clk 0:00:09]}  Kg6 {[%clk 0:00:15]} 58. Nd3 {[%clk 0:00:08]}  Ra1+ {[%clk 0:00:14]} 59. Ke2 {[%clk 0:00:09]}  Kg7 {[%clk 0:00:10]} 60. Ke3 {[%clk 0:00:09]}  Ne1 {[%clk 0:00:09]} 61. Nf4 {[%clk 0:00:05]}  Ra3+ {[%clk 0:00:08]} 62. Ke2 {[%clk 0:00:05]}  Nf3 {[%clk 0:00:07]} 63. Rd7 {[%clk 0:00:05]}  Kf6 {[%clk 0:00:07]} 64. Rb7 {[%clk 0:00:04]}  a5 {[%clk 0:00:06]} 65. Nd5+ {[%clk 0:00:04]}  Ke6 {[%clk 0:00:06]} 66. Ne3 {[%clk 0:00:05]}  Ne5 {[%clk 0:00:05]} 67. Rb6+ {[%clk 0:00:05]}  Ke7 {[%clk 0:00:06]} 68. Rb5 {[%clk 0:00:05]}  f6 {[%clk 0:00:06]} 69. Rb7+ {[%clk 0:00:05]}  Ke6 {[%clk 0:00:06]} 70. Rb6+ {[%clk 0:00:06]}  Kf7 {[%clk 0:00:06]} 71. Ra6 {[%clk 0:00:05]}  a4 {[%clk 0:00:06]} 72. Nd5 {[%clk 0:00:05]}  Ra2+ {[%clk 0:00:06]} 73. Ke3 {[%clk 0:00:05]}  Ra3+ {[%clk 0:00:06]} 74. Ke4 {[%clk 0:00:06]}  Rf3 {[%clk 0:00:05]} 75. Ra7+ {[%clk 0:00:06]}  Kg6 {[%clk 0:00:05]} 76. Nf4+ {[%clk 0:00:06]}  Kh6 {[%clk 0:00:04]} 77. Ra6 {[%clk 0:00:06]}  Kg5 {[%clk 0:00:01]} 78. Ne6+ {[%clk 0:00:04]}  Kg6 {[%clk 0:00:02]} 79. Nf4+ {[%clk 0:00:04]}  Kg5 {[%clk 0:00:02]} 80. Ra8 {[%clk 0:00:03]}  Kh6 {[%clk 0:00:03]} 81. Kf5 {[%clk 0:00:02]}  Nd3 {[%clk 0:00:02]} 82. Kxf6 {[%clk 0:00:03]}  Kh7 {[%clk 0:00:03]} 83. Ra7+ {[%clk 0:00:02]}  Kh6 {[%clk 0:00:03]} 84. Ra8 {[%clk 0:00:03]}  Kh7 {[%clk 0:00:03]} 85. Kg5 {[%clk 0:00:02]}  Nxf4 {[%clk 0:00:03]} 86. Ra7+ {[%clk 0:00:02]}  Kg8 {[%clk 0:00:03]} 87. gxf4 {[%clk 0:00:03]}  Rxf2 {[%clk 0:00:03]} 88. f5 {[%clk 0:00:03]}  g3 {[%clk 0:00:03]} 89. Kg6 {[%clk 0:00:03]}  Kf8 {[%clk 0:00:03]} 90. f6 {[%clk 0:00:04]}  Ke8 {[%clk 0:00:03]} 91. f7+ {[%clk 0:00:04]}  Kd8 {[%clk 0:00:03]} 92. Ra8+ {[%clk 0:00:05]}  Kc7 {[%clk 0:00:04]} 93. Rxa4 {[%clk 0:00:03]}  g2 {[%clk 0:00:03]} 94. Rg4 {[%clk 0:00:03]}  Kd7 {[%clk 0:00:02]} 95. Kg7 {[%clk 0:00:03]}  Ke7 {[%clk 0:00:03]} 96. Re4+ {[%clk 0:00:03]}  Kd7 {[%clk 0:00:03]} 97. Rg4 {[%clk 0:00:03]}  Ke7 {[%clk 0:00:04]} 98. Re4+ {[%clk 0:00:03]}  Kd7 {[%clk 0:00:04]} 99. Rd4+ {[%clk 0:00:02]}  Ke7 {[%clk 0:00:04]} 100. Re4+ {[%clk 0:00:02]} 1/2-1/2


[Site "https://www.chess.com"]

[Event "Titled Tuesday Blitz November 07 Early 2023"]
[White "Donchenko, Alexander"]
[Black "Reprintsev, Alexander"]
[WhiteFideId "24603295"]
[BlackFideId "14100541"]
[WhiteElo "2887"]
[BlackElo "2488"]
[Result "1-0"]
[Round "1"]
[TimeControl "180+1"]
[Date "2023.11.07"]
[WhiteClock "0:02:03"]
[BlackClock "0:02:01"]
[Board "41"]

1. d4 {[%clk 0:03:00]}  d5 {[%clk 0:02:58]} 2. c4 {[%clk 0:03:01]}  e5 {[%clk 0:02:58]} 3. dxe5 {[%clk 0:03:00]}  d4 {[%clk 0:02:58]} 4. Nf3 {[%clk 0:03:01]}  Nc6 {[%clk 0:02:58]} 5. a3 {[%clk 0:03:01]}  g6 {[%clk 0:02:59]} 6. e3 {[%clk 0:03:00]}  Bg4 {[%clk 0:02:58]} 7. Be2 {[%clk 0:02:59]}  Bxf3 {[%clk 0:02:57]} 8. Bxf3 {[%clk 0:02:59]}  Nge7 {[%clk 0:02:58]} 9. exd4 {[%clk 0:02:54]}  Qxd4 {[%clk 0:02:56]} 10. Qxd4 {[%clk 0:02:50]}  Nxd4 {[%clk 0:02:51]} 11. Bd1 {[%clk 0:02:51]}  Nec6 {[%clk 0:02:49]} 12. O-O {[%clk 0:02:44]}  Bg7 {[%clk 0:02:47]} 13. f4 {[%clk 0:02:39]}  f6 {[%clk 0:02:47]} 14. exf6 {[%clk 0:02:36]}  Bxf6 {[%clk 0:02:47]} 15. Nc3 {[%clk 0:02:34]}  O-O-O {[%clk 0:02:47]} 16. Nd5 {[%clk 0:02:33]}  Bg7 {[%clk 0:02:44]} 17. Bd2 {[%clk 0:02:30]}  Rhe8 {[%clk 0:02:43]} 18. Bc3 {[%clk 0:02:27]}  Ne7 {[%clk 0:02:42]} 19. Bg4+ {[%clk 0:02:24]}  Nef5 {[%clk 0:02:41]} 20. Rad1 {[%clk 0:02:20]}  Kb8 {[%clk 0:02:33]} 21. Bxf5 {[%clk 0:02:11]}  Nxf5 {[%clk 0:02:32]} 22. Bxg7 {[%clk 0:02:12]}  Nxg7 {[%clk 0:02:32]} 23. Nf6 {[%clk 0:02:12]}  Rh8 {[%clk 0:02:23]} 24. Nxh7 {[%clk 0:02:10]}  Ne6 {[%clk 0:02:21]} 25. Rxd8+ {[%clk 0:02:07]}  Rxd8 {[%clk 0:02:20]} 26. Ng5 {[%clk 0:02:07]}  Nc5 {[%clk 0:02:16]} 27. f5 {[%clk 0:02:04]}  gxf5 {[%clk 0:02:15]} 28. Rxf5 {[%clk 0:02:05]}  Nd3 {[%clk 0:02:15]} 29. b4 {[%clk 0:02:04]}  c5 {[%clk 0:02:12]} 30. bxc5 {[%clk 0:02:02]}  Rc8 {[%clk 0:02:12]} 31. Ne6 {[%clk 0:02:01]}  Re8 {[%clk 0:02:10]} 32. Rf8 {[%clk 0:02:00]}  Rxf8 {[%clk 0:02:09]} 33. Nxf8 {[%clk 0:02:01]}  Nxc5 {[%clk 0:02:10]} 34. h4 {[%clk 0:02:02]}  Kc7 {[%clk 0:02:10]} 35. h5 {[%clk 0:02:02]}  Ne4 {[%clk 0:02:03]} 36. h6 {[%clk 0:02:02]}  Ng5 {[%clk 0:02:03]} 37. h7 {[%clk 0:02:02]}  Nf7 {[%clk 0:02:03]} 38. Ng6 {[%clk 0:02:02]}  Kc6 {[%clk 0:02:03]} 39. h8=Q {[%clk 0:02:02]}  Nxh8 {[%clk 0:02:01]} 40. Nxh8 {[%clk 0:02:03]} 1-0


[Site "https://www.chess.com"]

[Event "Titled Tuesday Blitz November 07 Early 2023"]
[White "Zhigalko, Sergei"]
[Black "Garagulya, Konstantin"]
[WhiteFideId "13502956"]
[BlackFideId "4128931"]
[WhiteElo "2887"]
[BlackElo "2485"]
[Result "1-0"]
[Round "1"]
[TimeControl "180+1"]
[Date "2023.11.07"]
[WhiteClock "0:00:24"]
[BlackClock "0:00:00"]
[Board "43"]

1. e4 {[%clk 0:03:00]}  c5 {[%clk 0:02:58]} 2. Nf3 {[%clk 0:03:00]}  a6 {[%clk 0:02:58]} 3. c3 {[%clk 0:03:00]}  d5 {[%clk 0:02:57]} 4. exd5 {[%clk 0:03:00]}  Qxd5 {[%clk 0:02:58]} 5. d4 {[%clk 0:03:00]}  Nf6 {[%clk 0:02:59]} 6. Be3 {[%clk 0:02:57]}  cxd4 {[%clk 0:02:56]} 7. cxd4 {[%clk 0:02:58]}  e6 {[%clk 0:02:54]} 8. Nc3 {[%clk 0:02:58]}  Qd6 {[%clk 0:02:54]} 9. Bd3 {[%clk 0:02:56]}  Nc6 {[%clk 0:02:55]} 10. O-O {[%clk 0:02:55]}  Be7 {[%clk 0:02:55]} 11. Qe2 {[%clk 0:02:49]}  O-O {[%clk 0:02:55]} 12. Rad1 {[%clk 0:02:49]}  Rd8 {[%clk 0:02:55]} 13. Rfe1 {[%clk 0:02:50]}  b5 {[%clk 0:02:55]} 14. Bg5 {[%clk 0:02:47]}  Bb7 {[%clk 0:02:00]} 15. Bb1 {[%clk 0:02:47]}  g6 {[%clk 0:01:28]} 16. a3 {[%clk 0:02:14]}  Rac8 {[%clk 0:01:12]} 17. Ba2 {[%clk 0:02:14]}  b4 {[%clk 0:01:09]} 18. Na4 {[%clk 0:01:25]}  bxa3 {[%clk 0:00:36]} 19. bxa3 {[%clk 0:01:13]}  Nb8 {[%clk 0:00:15]} 20. Nc5 {[%clk 0:01:05]}  Bd5 {[%clk 0:00:16]} 21. Bb1 {[%clk 0:00:46]}  a5 {[%clk 0:00:13]} 22. Ne5 {[%clk 0:00:46]}  Nc6 {[%clk 0:00:08]} 23. Nb7 {[%clk 0:00:46]}  Qc7 {[%clk 0:00:07]} 24. Nxd8 {[%clk 0:00:46]}  Rxd8 {[%clk 0:00:07]} 25. Ba2 {[%clk 0:00:25]}  Bxa2 {[%clk 0:00:05]} 26. Nxc6 {[%clk 0:00:25]}  Qxc6 {[%clk 0:00:03]} 27. Qxa2 {[%clk 0:00:25]}  Rd5 {[%clk 0:00:00]} 28. Bh4 {[%clk 0:00:24]} 1-0


[Site "https://www.chess.com"]